[Event "EYCC Girls-U16 2019"]
[Site "Bratislava"]
[Date "2019.08.07"]
[Round "6.8"]
[White "Djidjeli, Sarah"]
[Black "Dubovyk, Anastasiia"]
[Result "1-0"]
[ECO "B52"]
[WhiteElo "2017"]
[BlackElo "1824"]
[Annotator "NA"]
[PlyCount "117"]
[EventDate "2019.08.02"]
[EventType "swiss"]
[EventCountry "SVK"]
[SourceTitle "playchess.com"]
[Source "ChessBase"]
[SourceQuality "1"]
[TimeControl "40/5400+30:1800+30"]

1. e4 {[%emt 0:00:00]} c5 {[%emt 0:00:00]} 2. Nf3 {[%emt 0:00:00]} d6 {[%emt 0:00:00]} 3. Bb5+ {[%emt 0:00:00]} Bd7 {[%emt 0:00:04]} 4. Bxd7+ {[%emt 0:00:00]} Qxd7 {[%emt 0:00:40]} 5. O-O {[%emt 0:00:09]} Nf6 {[%emt 0:00:57]} 6. Re1 {[%emt 0:00:15]} g6 {[%emt 0:00:37]} 7. e5 {[%emt 0:03:16]} dxe5 {[%emt 0:01:18]} 8. Nxe5 {[%emt 0:00:14]} Qc7 {[%emt 0:23:56]} 9. d3 {[%emt 0:12:52]} Bg7 {[%emt 0:06:27]} 10. Nc3 {[%emt 0:04:03]} O-O {[%emt 0:01:39]} 11. Qf3 {[%emt 0:02:25]} Nfd7 {[%emt 0:09:52]} 12. Nd5 {[%emt 0:09:25]} Nxe5 {[%emt 0:09:53]} 13. Nxc7 {[%emt 0:00:18]} Nxf3+ {[%emt 0:00:07]} 14. gxf3 {[%emt 0:00:08]} Nc6 {[%emt 0:00:18]} 15. Nxa8 {[%emt 0:00:11]} Rxa8 {[%emt 0:00:26]} 16. c3 {[%emt 0:02:55]} Rd8 {[%emt 0:02:32]} 17. Be3 {[%emt 0:02:46]} Ne5 {[%emt 0:05:53]} 18. Bxc5 {[%emt 0:10:19]} Nxf3+ {[%emt 0:00:59]} 19. Kg2 {[%emt 0:00:14]} Nxe1+ {[%emt 0:00:14]} 20. Rxe1 {[%emt 0:00:10]} e6 {[%emt 0:02:22]} 21. d4 {[%emt 0:01:59]} b6 {[%emt 0:00:11]} 22. Be7 {[%emt 0:00:50]} Rd5 {[%emt 0:01:24]} 23. Bh4 {[%emt 0:02:30]} h5 {[%emt 0:05:25]} 24. Bg3 {[%emt 0:05:42]} g5 {[%emt 0:06:50]} 25. h4 {[%emt 0:04:12]} g4 {[%emt 0:02:35]} 26. f3 {[%emt 0:05:09]} gxf3+ {[%emt 0:01:11]} 27. Kxf3 {[%emt 0:00:05]} b5 {[%emt 0:02:44]} 28. Be5 {[%emt 0:08:43]} Bh6 {[%emt 0:03:51]} 29. b3 {[%emt 0:01:26]} a6 {[%emt 0:00:45]} 30. c4 {[%emt 0:03:07]} bxc4 {[%emt 0:00:11]} 31. bxc4 {[%emt 0:00:04]} Ra5 {[%emt 0:00:17]} 32. Re2 {[%emt 0:03:30]} f6 {[%emt 0:01:34]} 33. Bd6 {[%emt 0:02:02]} Kf7 {[%emt 0:03:27]} 34. a3 {[%emt 0:01:28]} Rf5+ {[%emt 0:02:32]} 35. Kg3 {[%emt 0:04:39]} Rf1 {[%emt 0:00:56]} 36. Rc2 {[%emt 0:03:10]} Rc1 {[%emt 0:01:07]} 37. Rxc1 {[%emt 0:00:48]} Bxc1 {[%emt 0:00:06]} 38. a4 {[%emt 0:01:29]} Ke8 {[%emt 0:02:46]} 39. Kf3 {[%emt 0:03:04]} Kd7 {[%emt 0:00:54]} 40. Bb4 {[%emt 0:00:00]} f5 {[%emt 0:00:00]} 41. Bf8 {[%emt 0:08:13]} Kc6 {[%emt 0:08:55]} 42. Be7 {[%emt 0:02:16]} Bb2 {[%emt 0:04:23]} 43. Bf6 {[%emt 0:04:32]} Kb6 {[%emt 0:01:31]} 44. c5+ {[%emt 0:01:31]} Ka7 {[%emt 0:03:20]} 45. Kf4 {[%emt 0:02:08]} Bc1+ {[%emt 0:00:14]} 46. Ke5 {[%emt 0:00:31]} f4 {[%emt 0:05:59]} 47. Ke4 {[%emt 0:00:46]} Be3 {[%emt 0:00:27]} 48. Bg5 {[%emt 0:01:06]} Bf2 {[%emt 0:00:13]} 49. Bxf4 {[%emt 0:01:00]} Bxh4 {[%emt 0:00:07]} 50. Ke5 {[%emt 0:02:42]} Bf2 {[%emt 0:01:24]} 51. Kxe6 {[%emt 0:02:29]} Bxd4 {[%emt 0:03:03]} 52. c6 {[%emt 0:00:10]} Bb6 {[%emt 0:01:35]} 53. Be3 {[%emt 0:01:01]} h4 {[%emt 0:01:59]} 54. c7 {[%emt 0:00:52]} Kb7 {[%emt 0:00:20]} 55. Bxb6 {[%emt 0:00:07]} Kc8 {[%emt 0:00:22]} 56. Kd6 {[%emt 0:00:10]} h3 {[%emt 0:00:50]} 57. Bg1 {[%emt 0:00:05]} a5 {[%emt 0:00:17]} 58. Bh2 {[%emt 0:00:09]} Kb7 {[%emt 0:00:08]} 59. Kd7 {[%emt 0:00:04]} 1-0

[Event "EYCC Girls-U16 2019"]
[Site "Bratislava"]
[Date "2019.08.07"]
[Round "6.9"]
[White "Czarnecka, Lidia"]
[Black "Afanasieva, Alexandra"]
[Result "1/2-1/2"]
[ECO "B23"]
[WhiteElo "1731"]
[BlackElo "2085"]
[Annotator "NA"]
[PlyCount "78"]
[EventDate "2019.08.02"]
[EventType "swiss"]
[EventCountry "SVK"]
[SourceTitle "playchess.com"]
[Source "ChessBase"]
[SourceQuality "1"]
[TimeControl "40/5400+30:1800+30"]

1. e4 {[%emt 0:00:00]} c5 {[%emt 0:00:00]} 2. Nc3 {[%emt 0:00:28]} d6 {[%emt 0:00:00]} 3. f4 {[%emt 0:00:13]} Nc6 {[%emt 0:00:25]} 4. Nf3 {[%emt 0:00:30]} g6 {[%emt 0:00:18]} 5. d4 {[%emt 0:01:46]} cxd4 {[%emt 0:00:10]} 6. Nxd4 {[%emt 0:00:09]} Bg7 {[%emt 0:00:05]} 7. Be3 {[%emt 0:00:07]} Nf6 {[%emt 0:00:15]} 8. Be2 {[%emt 0:00:40]} O-O {[%emt 0:00:42]} 9. Nb3 {[%emt 0:00:42]} a6 {[%emt 0:02:50]} 10. O-O {[%emt 0:00:45]} b5 {[%emt 0:01:17]} 11. Bf3 {[%emt 0:01:34]} Bb7 {[%emt 0:02:24]} 12. Qd2 {[%emt 0:01:43]} Nd7 {[%emt 0:10:59]} 13. Rad1 {[%emt 0:08:39]} Nb6 {[%emt 0:04:10]} 14. Be2 {[%emt 0:01:12]} Rc8 {[%emt 0:12:12]} 15. a3 {[%emt 0:21:08]} Nc4 {[%emt 0:11:46]} 16. Bxc4 {[%emt 0:01:40]} bxc4 {[%emt 0:00:02]} 17. Nd4 {[%emt 0:00:19]} Nxd4 {[%emt 0:06:54]} 18. Bxd4 {[%emt 0:00:09]} e5 {[%emt 0:05:43]} 19. fxe5 {[%emt 0:09:04]} dxe5 {[%emt 0:00:06]} 20. Be3 {[%emt 0:00:08]} Qxd2 {[%emt 0:05:21]} 21. Rxd2 {[%emt 0:00:58]} f5 {[%emt 0:00:40]} 22. Nd5 {[%emt 0:07:36]} Bxd5 {[%emt 0:02:57]} 23. Rxd5 {[%emt 0:00:06]} Rb8 {[%emt 0:03:21]} 24. Bc5 {[%emt 0:02:28]} Rfe8 {[%emt 0:07:01]} 25. Bb4 {[%emt 0:03:32]} fxe4 {[%emt 0:01:04]} 26. Re1 {[%emt 0:03:51]} e3 {[%emt 0:03:20]} 27. Rc5 {[%emt 0:03:10]} Rbc8 {[%emt 0:12:35]} 28. Rxc8 {[%emt 0:01:42]} Rxc8 {[%emt 0:00:01]} 29. Rxe3 {[%emt 0:00:11]} Kf7 {[%emt 0:00:22]} 30. Kf2 {[%emt 0:02:13]} Ke6 {[%emt 0:00:07]} 31. Kf3 {[%emt 0:01:07]} Kd5 {[%emt 0:02:27]} 32. Re1 {[%emt 0:00:20]} e4+ {[%emt 0:03:17]} 33. Rxe4 {[%emt 0:00:51]} Bxb2 {[%emt 0:00:02]} 34. Re7 {[%emt 0:03:05]} h5 {[%emt 0:01:00]} 35. Rd7+ {[%emt 0:02:47]} Ke5 {[%emt 0:00:21]} 36. Re7+ {[%emt 0:05:17]} Kf6 {[%emt 0:00:57]} 37. Rd7 {[%emt 0:00:42]} Ke5 {[%emt 0:01:26]} 38. Re7+ {[%emt 0:00:18]} Kd5 {[%emt 0:00:22]} 39. Rd7+ {[%emt 0:00:18]} Ke5 {[%emt 0:00:10] Ke4+} 1/2-1/2

[Event "EYCC Girls-U16 2019"]
[Site "Bratislava"]
[Date "2019.08.07"]
[Round "6.10"]
[White "Hercog, Nusa"]
[Black "Adamczyk, Zuzanna"]
[Result "1/2-1/2"]
[ECO "E12"]
[WhiteElo "2053"]
[BlackElo "1900"]
[Annotator "NA"]
[PlyCount "136"]
[EventDate "2019.08.02"]
[EventType "swiss"]
[EventCountry "SVK"]
[SourceTitle "playchess.com"]
[Source "ChessBase"]
[SourceQuality "1"]
[TimeControl "40/5400+30:1800+30"]

1. d4 {[%emt 0:00:00]} Nf6 {[%emt 0:00:00]} 2. c4 {[%emt 0:00:00]} e6 {[%emt 0:00:00]} 3. Nf3 {[%emt 0:00:00]} b6 {[%emt 0:00:07]} 4. a3 {[%emt 0:00:00]} Bb7 {[%emt 0:00:25]} 5. Nc3 {[%emt 0:00:13]} Be7 {[%emt 0:00:32]} 6. d5 {[%emt 0:01:20]} O-O {[%emt 0:01:52]} 7. e4 {[%emt 0:00:17]} d6 {[%emt 0:01:56]} 8. Be2 {[%emt 0:00:59]} c5 {[%emt 0:05:54]} 9. O-O {[%emt 0:01:51]} e5 {[%emt 0:05:02]} 10. Ne1 {[%emt 0:06:53]} Ne8 {[%emt 0:11:00]} 11. f4 {[%emt 0:03:45]} exf4 {[%emt 0:03:15]} 12. Bxf4 {[%emt 0:00:07]} Bg5 {[%emt 0:02:37]} 13. Qd2 {[%emt 0:08:21]} Bxf4 {[%emt 0:04:51]} 14. Qxf4 {[%emt 0:00:32]} Nd7 {[%emt 0:01:13]} 15. Nd3 {[%emt 0:05:46]} Qe7 {[%emt 0:04:17]} 16. Rae1 {[%emt 0:02:31]} f6 {[%emt 0:02:03]} 17. Bg4 {[%emt 0:11:25]} Nc7 {[%emt 0:02:59]} 18. Bxd7 {[%emt 0:07:04]} Qxd7 {[%emt 0:00:14]} 19. a4 {[%emt 0:01:44]} a5 {[%emt 0:05:31]} 20. Rf3 {[%emt 0:01:09]} Rad8 {[%emt 0:09:11]} 21. Rh3 {[%emt 0:08:11]} Bc8 {[%emt 0:05:25]} 22. Qh4 {[%emt 0:00:31]} g6 {[%emt 0:01:56]} 23. Rg3 {[%emt 0:00:34]} Qg7 {[%emt 0:07:00]} 24. Rf1 {[%emt 0:13:27]} g5 {[%emt 0:16:27]} 25. Qh5 {[%emt 0:00:07]} h6 {[%emt 0:01:52]} 26. h4 {[%emt 0:02:18]} Kh7 {[%emt 0:01:51]} 27. Qe2 {[%emt 0:08:38]} Qe7 {[%emt 0:00:30]} 28. hxg5 {[%emt 0:02:22]} fxg5 {[%emt 0:02:12]} 29. e5 {[%emt 0:01:26]} Rxf1+ {[%emt 0:00:09]} 30. Kxf1 {[%emt 0:01:00]} Rf8+ {[%emt 0:02:22]} 31. Ke1 {[%emt 0:02:44]} dxe5 {[%emt 0:00:54]} 32. Re3 {[%emt 0:00:09]} Qf6 {[%emt 0:01:10]} 33. Nxe5 {[%emt 0:04:34]} Re8 {[%emt 0:00:40]} 34. Nc6 {[%emt 0:01:32]} Bg4 {[%emt 0:00:25]} 35. Re7+ {[%emt 0:04:10]} Rxe7 {[%emt 0:00:33]} 36. Qxe7+ {[%emt 0:00:04]} Qxe7+ {[%emt 0:00:07]} 37. Nxe7 {[%emt 0:00:01]} Kg7 {[%emt 0:00:50]} 38. d6 {[%emt 0:01:43]} Ne8 {[%emt 0:00:16]} 39. Ned5 {[%emt 0:00:58]} Nxd6 {[%emt 0:00:42]} 40. Nxb6 {[%emt 0:00:00]} Be6 {[%emt 0:00:00]} 41. b3 {[%emt 0:00:49]} Kf6 {[%emt 0:05:53]} 42. Na8 {[%emt 0:16:08]} Ke5 {[%emt 0:03:08]} 43. Nc7 {[%emt 0:01:16]} Bf7 {[%emt 0:01:30]} 44. Na6 {[%emt 0:02:19]} Nb7 {[%emt 0:00:40]} 45. Ne2 {[%emt 0:04:52]} Bg6 {[%emt 0:10:16]} 46. Kd2 {[%emt 0:01:28]} Be4 {[%emt 0:00:45]} 47. g3 {[%emt 0:00:11]} h5 {[%emt 0:00:47]} 48. Nc7 {[%emt 0:02:23]} Bc6 {[%emt 0:01:02]} 49. Ke3 {[%emt 0:01:20]} Nd6 {[%emt 0:01:38]} 50. Kf2 {[%emt 0:01:59]} Ne4+ {[%emt 0:00:46]} 51. Ke3 {[%emt 0:00:11]} Nd6 {[%emt 0:01:01]} 52. Kf2 {[%emt 0:01:20]} h4 {[%emt 0:01:25]} 53. gxh4 {[%emt 0:00:32]} gxh4 {[%emt 0:00:12]} 54. Ng1 {[%emt 0:01:00]} Ne4+ {[%emt 0:00:39]} 55. Ke3 {[%emt 0:01:37]} Ng5 {[%emt 0:01:20]} 56. Kf2 {[%emt 0:00:43]} h3 {[%emt 0:06:02]} 57. Kg3 {[%emt 0:00:10]} Kd6 {[%emt 0:00:38]} 58. Nb5+ {[%emt 0:01:08]} Bxb5 {[%emt 0:00:30]} 59. axb5 {[%emt 0:00:48]} Ne4+ {[%emt 0:00:08]} 60. Kxh3 {[%emt 0:00:19]} Nd2 {[%emt 0:00:09]} 61. Ne2 {[%emt 0:00:56]} Nxb3 {[%emt 0:00:09]} 62. Nc3 {[%emt 0:00:31]} Nd2 {[%emt 0:00:26]} 63. Kg3 {[%emt 0:00:14]} Nxc4 {[%emt 0:00:36]} 64. Na4 {[%emt 0:00:44]} Na3 {[%emt 0:01:39]} 65. b6 {[%emt 0:00:13]} c4 {[%emt 0:01:13]} 66. Kf3 {[%emt 0:00:05]} Kc6 {[%emt 0:00:33]} 67. Ke3 {[%emt 0:00:40]} Nb5 {[%emt 0:00:22]} 68. Kd2 {[%emt 0:00:11]} Nd6 1/2-1/2

[Event "EYCC Girls-U16 2019"]
[Site "Bratislava"]
[Date "2019.08.07"]
[Round "6.11"]
[White "Esadze, Tamari"]
[Black "Juhasz, Judit"]
[Result "0-1"]
[ECO "B32"]
[WhiteElo "1997"]
[BlackElo "2050"]
[Annotator "NA"]
[PlyCount "118"]
[EventDate "2019.08.02"]
[EventType "swiss"]
[EventCountry "SVK"]
[SourceTitle "playchess.com"]
[Source "ChessBase"]
[SourceQuality "1"]
[TimeControl "40/5400+30:1800+30"]

1. e4 {[%emt 0:00:00]} c5 {[%emt 0:00:00]} 2. Nf3 {[%emt 0:00:00]} Nc6 {[%emt 0:00:00]} 3. d4 {[%emt 0:00:00]} cxd4 {[%emt 0:00:02]} 4. Nxd4 {[%emt 0:00:00]} Qb6 {[%emt 0:00:14]} 5. Nb3 {[%emt 0:01:52]} Nf6 {[%emt 0:00:12]} 6. Nc3 {[%emt 0:00:30]} e6 {[%emt 0:00:17]} 7. Be3 {[%emt 0:01:13]} Qc7 {[%emt 0:00:16]} 8. a3 {[%emt 0:02:50]} a6 {[%emt 0:00:32]} 9. Be2 {[%emt 0:01:08]} b5 {[%emt 0:00:57]} 10. O-O {[%emt 0:06:35]} Be7 {[%emt 0:03:13]} 11. f4 {[%emt 0:01:21]} d6 {[%emt 0:00:11]} 12. Qd2 {[%emt 0:04:25]} O-O {[%emt 0:03:50]} 13. Rad1 {[%emt 0:00:28]} Bb7 {[%emt 0:01:30]} 14. Bf3 {[%emt 0:01:23]} Rac8 {[%emt 0:06:48]} 15. Qf2 {[%emt 0:08:28]} b4 {[%emt 0:02:58]} 16. axb4 {[%emt 0:06:17]} Nxb4 {[%emt 0:01:03]} 17. Bd4 {[%emt 0:15:44]} Nd7 {[%emt 0:09:00]} 18. Bxg7 {[%emt 0:08:29]} Kxg7 {[%emt 0:04:22]} 19. Qd4+ {[%emt 0:00:04]} Nf6 {[%emt 0:06:08]} 20. Qxb4 {[%emt 0:00:58]} d5 {[%emt 0:00:15]} 21. Qd4 {[%emt 0:12:26]} dxe4 {[%emt 0:00:33]} 22. Nxe4 {[%emt 0:03:52]} Qxc2 {[%emt 0:04:47]} 23. Na1 {[%emt 0:09:48]} Qc7 {[%emt 0:04:17]} 24. Kh1 {[%emt 0:05:22]} Rfd8 {[%emt 0:08:10]} 25. Qe3 {[%emt 0:00:37]} Bxe4 {[%emt 0:03:21]} 26. Bxe4 {[%emt 0:00:15]} Nxe4 {[%emt 0:02:31]} 27. Qxe4 {[%emt 0:01:40]} Rxd1 {[%emt 0:01:39]} 28. Rxd1 {[%emt 0:00:02]} Qc1 {[%emt 0:03:47]} 29. Qe2 {[%emt 0:03:34]} Qxf4 {[%emt 0:01:05]} 30. g3 {[%emt 0:01:11]} Qa4 {[%emt 0:00:49]} 31. b3 {[%emt 0:01:55]} Qc6+ {[%emt 0:00:32]} 32. Qg2 {[%emt 0:00:05]} Qc3 {[%emt 0:06:29]} 33. Qe2 {[%emt 0:01:05]} Ba3 {[%emt 0:04:44]} 34. Rb1 {[%emt 0:01:52]} f5 {[%emt 0:02:36]} 35. b4 {[%emt 0:01:25]} Bxb4 {[%emt 0:00:53]} 36. Nb3 {[%emt 0:00:17]} Qc6+ {[%emt 0:02:23]} 37. Kg1 {[%emt 0:00:14]} Bc3 {[%emt 0:07:59]} 38. Qe3 {[%emt 0:00:35]} Qc4 {[%emt 0:03:12]} 39. Qa7+ {[%emt 0:00:57]} Rc7 {[%emt 0:00:13]} 40. Qe3 {[%emt 0:00:00]} h6 {[%emt 0:00:00]} 41. Qb6 {[%emt 0:06:07]} Rd7 {[%emt 0:05:57]} 42. Qb8 {[%emt 0:05:52]} Qd3 {[%emt 0:03:14]} 43. Rc1 {[%emt 0:02:42]} Bd4+ {[%emt 0:00:39]} 44. Kg2 {[%emt 0:00:03]} Qe4+ {[%emt 0:02:49]} 45. Kh3 {[%emt 0:00:12]} Be3 {[%emt 0:02:33]} 46. Qc8 {[%emt 0:04:06]} Rf7 {[%emt 0:00:38]} 47. Qc3+ {[%emt 0:03:50]} Kh7 {[%emt 0:00:38]} 48. Re1 {[%emt 0:03:10]} f4 {[%emt 0:01:19]} 49. Nd2 {[%emt 0:04:52]} Qf5+ {[%emt 0:04:00]} 50. g4 {[%emt 0:00:54]} Qd5 {[%emt 0:01:41]} 51. Qc2+ {[%emt 0:00:06]} Kg7 {[%emt 0:00:16]} 52. Ne4 {[%emt 0:00:32]} h5 {[%emt 0:00:48]} 53. Rd1 {[%emt 0:00:49]} hxg4+ {[%emt 0:00:16]} 54. Kxg4 {[%emt 0:01:13]} Qf5+ {[%emt 0:00:12]} 55. Kh4 {[%emt 0:00:13]} Kh6 {[%emt 0:02:46]} 56. Qe2 {[%emt 0:01:59]} Qxe4 {[%emt 0:03:43]} 57. Qh5+ {[%emt 0:00:11]} Kg7 {[%emt 0:00:04]} 58. Rd8 f3+ {[%emt 0:00:51]} 59. Kg3 {[%emt 0:01:44]} Qg6+ {[%emt 0:00:35]} 0-1

[Event "EYCC Girls-U16 2019"]
[Site "Bratislava"]
[Date "2019.08.07"]
[Round "6.12"]
[White "Guillo Longares, Cecilia"]
[Black "Vanduyfhuys, Daria"]
[Result "1-0"]
[ECO "A18"]
[WhiteElo "1916"]
[BlackElo "2114"]
[Annotator "NA"]
[PlyCount "81"]
[EventDate "2019.08.02"]
[EventType "swiss"]
[EventCountry "SVK"]
[SourceTitle "playchess.com"]
[Source "ChessBase"]
[SourceQuality "1"]
[TimeControl "40/5400+30:1800+30"]

1. c4 {[%emt 0:00:00]} e6 {[%emt 0:00:00]} 2. Nc3 {[%emt 0:00:00]} Nf6 {[%emt 0:00:20]} 3. e4 {[%emt 0:00:00]} d6 {[%emt 0:11:22]} 4. d4 {[%emt 0:00:54]} Be7 {[%emt 0:01:53]} 5. Bd3 {[%emt 0:02:11]} Nbd7 {[%emt 0:08:14]} 6. Nf3 {[%emt 0:01:31]} e5 {[%emt 0:01:01]} 7. O-O {[%emt 0:00:52]} O-O {[%emt 0:00:27]} 8. h3 {[%emt 0:01:25]} exd4 {[%emt 0:04:12]} 9. Nxd4 {[%emt 0:00:09]} Re8 {[%emt 0:00:06]} 10. f4 {[%emt 0:05:50]} Bf8 {[%emt 0:01:39]} 11. Qf3 {[%emt 0:01:36]} Nc5 {[%emt 0:02:58]} 12. Bc2 {[%emt 0:02:41]} a5 {[%emt 0:00:41]} 13. b3 {[%emt 0:01:57]} Bd7 {[%emt 0:13:09]} 14. Bb2 {[%emt 0:01:42]} Ne6 {[%emt 0:04:39]} 15. Nf5 {[%emt 0:07:23]} Bc6 {[%emt 0:03:09]} 16. Nd5 {[%emt 0:04:57]} Nd7 {[%emt 0:00:20]} 17. Qg3 {[%emt 0:07:06]} g6 {[%emt 0:05:22]} 18. Qc3 {[%emt 0:00:17]} f6 {[%emt 0:00:07]} 19. Nh4 {[%emt 0:04:12]} Nec5 {[%emt 0:02:21]} 20. Rae1 {[%emt 0:09:47]} Bg7 {[%emt 0:00:21]} 21. Qg3 {[%emt 0:05:14]} b5 {[%emt 0:06:44]} 22. e5 {[%emt 0:09:33]} dxe5 {[%emt 0:10:21]} 23. fxe5 {[%emt 0:00:19]} Nxe5 {[%emt 0:00:43]} 24. Bxe5 {[%emt 0:00:33]} Rxe5 {[%emt 0:03:27]} 25. Rxe5 {[%emt 0:01:46]} fxe5 {[%emt 0:00:06]} 26. Nxg6 {[%emt 0:03:13]} Bxd5 {[%emt 0:02:41]} 27. cxd5 {[%emt 0:01:48]} Qd6 {[%emt 0:05:45]} 28. Nh4 {[%emt 0:03:32]} Qxd5 {[%emt 0:00:59]} 29. Nf5 {[%emt 0:01:15]} Qd7 {[%emt 0:01:28]} 30. Rd1 {[%emt 0:04:27]} Qxd1+ {[%emt 0:01:05]} 31. Bxd1 {[%emt 0:00:06]} Ne6 {[%emt 0:00:17]} 32. Nxg7 {[%emt 0:02:08]} Nxg7 {[%emt 0:00:07]} 33. Qxe5 {[%emt 0:00:09]} Re8 {[%emt 0:00:16]} 34. Qd5+ {[%emt 0:00:18]} Kf8 {[%emt 0:01:28]} 35. Bg4 {[%emt 0:00:37]} Re1+ {[%emt 0:00:52]} 36. Kh2 {[%emt 0:00:11]} Ra1 {[%emt 0:00:13]} 37. Qc5+ {[%emt 0:02:52]} Kg8 {[%emt 0:00:13]} 38. Bf3 {[%emt 0:00:49]} h6 {[%emt 0:00:32]} 39. Bd5+ {[%emt 0:01:13]} Kh7 {[%emt 0:00:08]} 40. Qc2+ {[%emt 0:00:00]} Kh8 {[%emt 0:00:00]} 41. Qg6 {[%emt 0:00:10]} 1-0

[Event "EYCC Girls-U16 2019"]
[Site "Bratislava"]
[Date "2019.08.07"]
[Round "6.13"]
[White "Ilyina, Lada"]
[Black "Donghvani, Nia"]
[Result "0-1"]
[ECO "B40"]
[WhiteElo "2048"]
[BlackElo "1864"]
[Annotator "NA"]
[PlyCount "132"]
[EventDate "2019.08.02"]
[EventType "swiss"]
[EventCountry "SVK"]
[SourceTitle "playchess.com"]
[Source "ChessBase"]
[SourceQuality "1"]
[TimeControl "40/5400+30:1800+30"]

1. e4 {[%emt 0:00:00]} c5 {[%emt 0:00:00]} 2. Nf3 {[%emt 0:00:00]} e6 {[%emt 0:00:00]} 3. Nc3 {[%emt 0:00:15]} a6 {[%emt 0:01:42]} 4. g3 {[%emt 0:04:30]} Nc6 {[%emt 0:00:16]} 5. Bg2 {[%emt 0:01:13]} Nf6 {[%emt 0:04:41]} 6. d3 {[%emt 0:00:39]} d6 {[%emt 0:00:48]} 7. O-O {[%emt 0:00:31]} Be7 {[%emt 0:00:34]} 8. Ne1 {[%emt 0:08:03]} O-O {[%emt 0:04:42]} 9. f4 {[%emt 0:00:54]} Bd7 {[%emt 0:02:07]} 10. g4 {[%emt 0:14:26]} Rc8 {[%emt 0:04:05]} 11. h3 {[%emt 0:13:18]} b5 {[%emt 0:07:05]} 12. Ne2 {[%emt 0:02:19]} Ne8 {[%emt 0:04:51]} 13. c3 {[%emt 0:01:36]} f5 {[%emt 0:09:48]} 14. exf5 {[%emt 0:04:56]} exf5 {[%emt 0:00:04]} 15. g5 {[%emt 0:01:37]} Be6 {[%emt 0:01:42]} 16. d4 {[%emt 0:01:41]} d5 {[%emt 0:04:07]} 17. Be3 {[%emt 0:06:29]} c4 {[%emt 0:03:46]} 18. Nf3 {[%emt 0:01:43]} Nd6 {[%emt 0:02:51]} 19. Ng3 {[%emt 0:01:31]} Ne4 {[%emt 0:04:09]} 20. Nxe4 {[%emt 0:04:35]} fxe4 {[%emt 0:01:29]} 21. Ne5 {[%emt 0:00:20]} Bd6 {[%emt 0:03:17]} 22. Qh5 {[%emt 0:05:34]} Ne7 {[%emt 0:03:41]} 23. Kh2 {[%emt 0:07:43]} Nf5 {[%emt 0:02:29]} 24. Rae1 {[%emt 0:03:59]} Qe8 {[%emt 0:10:07]} 25. Qxe8 {[%emt 0:07:11]} Rfxe8 {[%emt 0:00:15]} 26. Bf2 {[%emt 0:00:28]} b4 {[%emt 0:01:25]} 27. h4 {[%emt 0:00:39]} bxc3 {[%emt 0:00:38]} 28. bxc3 {[%emt 0:00:04]} Rb8 {[%emt 0:01:50]} 29. Rb1 {[%emt 0:00:08]} Rb5 {[%emt 0:17:08]} 30. a4 {[%emt 0:01:44]} Ra5 {[%emt 0:02:03]} 31. Ra1 {[%emt 0:01:27]} Bxe5 {[%emt 0:00:19]} 32. fxe5 {[%emt 0:00:28]} Bd7 {[%emt 0:01:34]} 33. Bh3 {[%emt 0:00:33]} g6 {[%emt 0:00:47]} 34. Bxf5 {[%emt 0:00:29]} gxf5 {[%emt 0:00:39]} 35. Bg3 {[%emt 0:00:33]} Rxa4 {[%emt 0:00:18]} 36. Rxa4 {[%emt 0:00:21]} Bxa4 {[%emt 0:00:01]} 37. Rxf5 {[%emt 0:00:11]} Bd7 {[%emt 0:00:53]} 38. Rf6 {[%emt 0:01:09]} Re6 {[%emt 0:00:16]} 39. Rf1 {[%emt 0:01:12]} a5 {[%emt 0:00:41]} 40. Bf4 {[%emt 0:00:00]} Rb6 {[%emt 0:00:00]} 41. h5 {[%emt 0:07:55]} a4 {[%emt 0:07:37]} 42. Bc1 {[%emt 0:05:13]} Rb3 {[%emt 0:11:01]} 43. g6 {[%emt 0:14:07]} hxg6 {[%emt 0:04:07]} 44. Rf6 {[%emt 0:05:50]} gxh5 {[%emt 0:05:47]} 45. Rg6+ {[%emt 0:00:37]} Kh7 {[%emt 0:03:01]} 46. Rd6 {[%emt 0:02:33]} Be8 {[%emt 0:01:46]} 47. Re6 {[%emt 0:01:10]} Rb8 {[%emt 0:01:00]} 48. Re7+ {[%emt 0:00:47]} Kg8 {[%emt 0:00:55]} 49. Kg3 {[%emt 0:00:59]} Bb5 {[%emt 0:01:00]} 50. Kh4 {[%emt 0:00:41]} Ra8 {[%emt 0:00:53]} 51. Kxh5 {[%emt 0:00:34]} a3 {[%emt 0:00:01]} 52. Kg6 {[%emt 0:00:24]} Be8+ {[%emt 0:01:04]} 53. Kf6 {[%emt 0:00:26]} a2 {[%emt 0:00:31]} 54. Bb2 {[%emt 0:00:27]} e3 {[%emt 0:00:11]} 55. Rg7+ {[%emt 0:00:29]} Kh8 {[%emt 0:00:42]} 56. Rg1 {[%emt 0:00:01]} e2 {[%emt 0:00:34]} 57. Rh1+ {[%emt 0:00:18]} Kg8 {[%emt 0:00:02]} 58. Rg1+ {[%emt 0:01:25]} Kh8 {[%emt 0:00:41]} 59. Rh1+ {[%emt 0:00:06]} Kg8 {[%emt 0:00:05]} 60. Rg1+ {[%emt 0:00:31]} Kf8 {[%emt 0:00:40]} 61. e6 {[%emt 0:00:23]} Bf7 {[%emt 0:01:07]} 62. exf7 {[%emt 0:01:01]} Ra6+ {[%emt 0:00:01]} 63. Ke5 {[%emt 0:00:06]} Kxf7 {[%emt 0:00:25]} 64. Kxd5 {[%emt 0:00:11]} Rb6 {[%emt 0:00:36]} 65. Kxc4 {[%emt 0:01:11]} Rxb2 {[%emt 0:00:05]} 66. Ra1 {[%emt 0:00:35]} Rb1 0-1

[Event "EYCC Girls-U16 2019"]
[Site "Bratislava"]
[Date "2019.08.07"]
[Round "6.14"]
[White "Muedder, Melanie"]
[Black "Dylag, Emilia"]
[Result "0-1"]
[ECO "B90"]
[WhiteElo "1905"]
[BlackElo "2099"]
[Annotator "NA"]
[PlyCount "76"]
[EventDate "2019.08.02"]
[EventType "swiss"]
[EventCountry "SVK"]
[SourceTitle "playchess.com"]
[Source "ChessBase"]
[SourceQuality "1"]
[TimeControl "40/5400+30:1800+30"]

1. e4 {[%emt 0:00:00]} c5 {[%emt 0:00:00]} 2. Nf3 {[%emt 0:00:00]} d6 {[%emt 0:00:00]} 3. d4 {[%emt 0:00:00]} cxd4 {[%emt 0:00:08]} 4. Nxd4 {[%emt 0:00:06]} Nf6 {[%emt 0:00:22]} 5. Nc3 {[%emt 0:00:17]} a6 {[%emt 0:00:09]} 6. Nb3 {[%emt 0:00:23]} Nbd7 {[%emt 0:00:22]} 7. g4 {[%emt 0:00:26]} h6 {[%emt 0:00:29]} 8. h4 {[%emt 0:01:10]} b5 {[%emt 0:01:12]} 9. Bg2 {[%emt 0:02:22]} b4 {[%emt 0:06:20]} 10. Nd5 {[%emt 0:07:23]} Nxd5 {[%emt 0:00:41]} 11. exd5 {[%emt 0:01:21]} Ne5 {[%emt 0:00:53]} 12. g5 {[%emt 0:01:36]} hxg5 {[%emt 0:01:01]} 13. hxg5 {[%emt 0:00:43]} Bg4 {[%emt 0:16:23]} 14. Qd4 {[%emt 0:08:28]} Rxh1+ {[%emt 0:02:04]} 15. Bxh1 {[%emt 0:00:07]} Bf3 {[%emt 0:20:29]} 16. Qh4 {[%emt 0:08:27]} Qc7 {[%emt 0:03:51]} 17. Nd4 {[%emt 0:13:53]} Qc4 {[%emt 0:04:03]} 18. Be3 {[%emt 0:04:18]} Bxd5 {[%emt 0:04:05]} 19. Bxd5 {[%emt 0:04:51]} Qxd5 {[%emt 0:00:07]} 20. O-O-O {[%emt 0:03:02]} Rc8 {[%emt 0:04:27]} 21. Qh3 {[%emt 0:06:10]} e6 {[%emt 0:04:48]} 22. f4 {[%emt 0:08:16]} Nc6 {[%emt 0:03:55]} 23. g6 {[%emt 0:05:00]} f5 {[%emt 0:04:09]} 24. Qh8 {[%emt 0:09:11]} Nxd4 {[%emt 0:03:55]} 25. Bxd4 {[%emt 0:02:05]} Qg2 {[%emt 0:04:15]} 26. c3 {[%emt 0:06:47]} Qxg6 {[%emt 0:03:04]} 27. Rg1 {[%emt 0:00:34]} Qh6 {[%emt 0:00:40]} 28. Qg8 {[%emt 0:02:16]} bxc3 {[%emt 0:07:08]} 29. bxc3 {[%emt 0:02:06]} Qxf4+ {[%emt 0:02:08]} 30. Kb2 {[%emt 0:02:25]} Kd7 {[%emt 0:01:34]} 31. Qf7+ {[%emt 0:00:55]} Be7 {[%emt 0:01:44]} 32. Qxg7 {[%emt 0:00:41]} Qd2+ {[%emt 0:00:40]} 33. Ka1 {[%emt 0:00:23]} Rb8 {[%emt 0:00:27]} 34. c4 {[%emt 0:00:21]} e5 {[%emt 0:00:26]} 35. Bxe5 {[%emt 0:00:42]} dxe5 {[%emt 0:00:39]} 36. Qxe5 {[%emt 0:00:12]} Qd6 {[%emt 0:00:41]} 37. Qxf5+ {[%emt 0:00:24]} Kc7 {[%emt 0:00:14]} 38. Rf1 {[%emt 0:00:59]} Qd4# {[%emt 0:00:12]} 0-1